bitfinex-derivatives/quotes_SOLF0:USTF0_20241216
["timestamp","ask_amount","ask_price","bid_price","bid_amount"]
[1734390494141,2.2959,217.71,217.69,6.40611248]
[1734390494541,2.2957,217.73,217.69,6.40611248]
[1734390495041,2.2958,217.72,217.69,6.40611248]
[1734390495939,2.1,217.74,217.69,8.70211248]
[1734390496344,6.40611248,217.76,217.69,8.70211248]
[1734390498552,2.2957,217.73,217.69,8.70211248]
[1734390499643,6.40611248,217.74,217.68,5.45597198]
[1734390499848,2.1,217.73,217.68,5.45597198]
[1734390500048,2.1,217.73,217.68,11.86208446]
[1734390500647,2.296,217.7,217.68,11.86208446]
[1734390501247,2.296,217.7,217.68,5.45597198]
[1734390502047,6.40611248,217.72,217.62,2.1]
[1734390502251,6.40611248,217.72,217.65,6.40611248]
[1734390503153,2.2963,217.67,217.63,2.2966]
[1734390503355,2.2963,217.67,217.66,5.53332157]
[1734390508453,2.1,217.73,217.66,5.53332157]
[1734390508759,2.2961,217.69,217.66,5.53332157]
[1734390510557,8.64611248,217.73,217.66,5.53332157]
[1734390510756,8.64611248,217.73,217.66,11.93943405]
[1734390511152,2.2959,217.71,217.67,2.2963]
[1734390512359,2.296,217.7,217.67,2.2963]
[1734390512762,8.64611248,217.73,217.67,2.2963]
[1734390512964,10.14862015,217.81,217.68,6.40611248]
[1734390512965,8.64611248,217.75,217.68,6.40611248]
[1734390513261,8.64611248,217.75,217.66,5.53332157]
[1734390513262,6.40611248,217.75,217.7,6.40611248]
[1734390513565,2.2958,217.72,217.7,6.40611248]
[1734390514263,6.40611248,217.75,217.7,6.40611248]
[1734390514570,2.2959,217.71,217.68,8.00311248]
[1734390518477,2.2959,217.71,217.68,10.29921248]
[1734390519374,6.40611248,217.69,217.46,25.47830414]
[1734390519568,6.40611248,217.6,217.59,5.40914581]
[1734390520274,6.40611248,217.6,217.56,2.2973]
[1734390521277,2.2972,217.59,217.54,1.4956]
[1734390521476,2.2972,217.59,217.55,2.2975]
[1734390522280,8.70331248,217.58,217.54,6.87441312]
[1734390524484,3.0689,217.74,217.54,6.87441312]
[1734390524787,6.40611248,217.6,217.56,2.2973]
[1734390525584,2.2971,217.59,217.56,2.2973]
[1734390526983,2.2971,217.59,217.55,2.2975]
[1734390529581,6.40611248,217.6,217.55,2.2975]
[1734390529882,2.2972,217.58,217.55,2.2975]
[1734390530581,3.0689,217.74,217.56,6.40611248]
[1734390530582,8.64611248,217.66,217.56,6.40611248]
[1734390530787,8.64611248,217.66,217.59,6.40611248]
[1734390531383,2.2967,217.63,217.59,8.70311248]
[1734390533390,2.2967,217.63,217.59,2.297]
[1734390540891,2.2967,217.63,217.57,6.40611248]
[1734390541188,6.40611248,217.64,217.59,6.40611248]
[1734390541189,2.2966,217.64,217.59,6.40611248]
[1734390541495,2.2967,217.63,217.59,6.40611248]
[1734390541693,8.64611248,217.66,217.59,6.40611248]
[1734390542091,2.2967,217.64,217.61,2.2969]
[1734390542598,8.64611248,217.66,217.61,2.2969]
[1734390542895,2.2967,217.63,217.6,2.297]
[1734390545494,2.2968,217.62,217.6,2.297]
[1734390546193,6.40611248,217.64,217.58,2.2972]
[1734390547798,2.2969,217.61,217.58,2.2972]
[1734390548497,6.40611248,217.62,217.55,7.88521248]
[1734390549489,2.2971,217.59,217.56,2.2974]
[1734390550295,6.40611248,217.58,217.52,2.2978]
[1734390550794,8.60611248,217.58,217.52,2.2978]
[1734390551503,6.40611248,217.6,217.54,6.40611248]
[1734390552401,2.2972,217.59,217.56,2.2974]
[1734390554295,6.40611248,217.6,217.54,6.40611248]
[1734390555104,2.2974,217.57,217.54,6.40611248]
[1734390555807,6.40611248,217.62,217.54,6.40611248]
[1734390555998,8.60611248,217.62,217.54,6.40611248]
[1734390556195,2.2,217.62,217.56,6.40611248]
[1734390556397,2.2971,217.6,217.57,2.2972]
[1734390556600,292.87719557,217.79,217.56,6.40611248]
[1734390556799,2.2,217.71,217.6,6.40611248]
[1734390557099,2.2965,217.66,217.62,8.70281248]
[1734390557301,2.2,217.69,217.62,6.40611248]
[1734390557504,2.2963,217.67,217.63,2.2966]
[1734390557700,2.2,217.7,217.62,6.40611248]
[1734390557896,2.2,217.7,217.64,6.40611248]
[1734390558101,49.18066267,217.74,217.66,6.40611248]
[1734390558301,6.40611248,217.73,217.66,6.40611248]
[1734390558598,51.38066267,217.74,217.68,6.40611248]
[1734390559101,2.2,217.78,217.7,6.40611248]
[1734390559302,6.40611248,217.77,217.64,2.2]
[1734390559606,6.40611248,217.77,217.7,6.40611248]
[1734390559805,3.0654,217.82,217.7,6.40611248]
[1734390560008,6.40611248,217.78,217.7,6.40611248]
[1734390560306,6.40611248,217.78,217.71,2.2959]
[1734390560503,6.40611248,217.76,217.7,6.40611248]
[1734390560708,2.2951,217.78,217.7,8.70211248]
[1734390561003,6.40611248,217.77,217.7,6.40611248]
[1734390561809,2.2955,217.75,217.7,6.40611248]
[1734390562006,8.60611248,217.79,217.72,6.40611248]
[1734390562400,2.2953,217.77,217.72,8.70181248]
[1734390562905,2.2953,217.77,217.72,6.40611248]
[1734390563306,10.90121248,217.79,217.74,2.2955]
[1734390563606,10.90121248,217.79,217.7,1.5207]
[1734390563607,6.40611248,217.79,217.7,1.5207]
[1734390563803,6.40611248,217.79,217.71,6.40611248]
[1734390565404,2.2953,217.77,217.73,2.2956]
[1734390569609,6.40611248,217.79,217.73,6.40611248]
[1734390569908,6.40611248,217.79,217.7,1.5207]
[1734390569909,6.40611248,217.82,217.76,2.2953]
[1734390570804,2.295,217.8,217.76,2.2953]
[1734390571504,6.40611248,217.82,217.76,2.2953]
[1734390571699,2.295,217.79,217.76,2.2953]
[1734390572300,2.2952,217.77,217.71,3.1423]
[1734390572500,2.2952,217.77,217.71,9.54841248]
[1734390573004,2.2952,217.77,217.73,2.2955]
[1734390574309,6.40611248,217.78,217.73,2.2955]
[1734390574502,6.40611248,217.76,217.7,3.8167]
[1734390574908,2.2955,217.75,217.7,3.8167]
[1734390575107,6.40611248,217.76,217.7,3.8167]
[1734390575806,6.40611248,217.76,217.69,6.40611248]
[1734390576007,6.40611248,217.72,217.65,6.40611248]
[1734390576209,2.296,217.7,217.65,6.40611248]
[1734390576611,2.296,217.7,217.66,2.2963]
[1734390577013,2.296,217.7,217.65,6.40611248]
[1734390578404,2.296,217.7,217.67,2.2962]
[1734390583017,2.2962,217.68,217.65,2.2964]
[1734390584521,6.40611248,217.72,217.64,1.6405]
[1734390584720,2.296,217.7,217.64,3.9371]
[1734390584921,6.40611248,217.72,217.64,3.9371]
[1734390586318,2.296,217.7,217.65,2.2965]
[1734390586516,6.40611248,217.72,217.65,2.2965]
[1734390587016,2.2961,217.69,217.65,2.2965]
[1734390589520,6.40611248,217.72,217.65,2.2965]
[1734390589724,2.2962,217.68,217.65,2.2965]
[1734390592531,6.40611248,217.7,217.64,0.1743]
[1734390593428,2.2965,217.66,217.64,0.1743]
[1734390593629,8.68611248,217.66,217.64,0.1743]
[1734390594127,2.2965,217.65,217.55,6.40611248]
[1734390594332,8.68611248,217.66,217.55,6.40611248]
[1734390594333,6.40611248,217.63,217.55,6.40611248]
[1734390594730,6.40611248,217.63,217.55,11.93188079]
[1734390594923,6.40611248,217.63,217.55,6.40611248]
[1734390595125,2.2972,217.58,217.55,6.40611248]
[1734390595731,6.40611248,217.59,217.36,196.599]
[1734390595931,6.40611248,217.59,217.42,5.3539]
[1734390596232,6.40611248,217.59,217.52,6.40611248]
[1734390596431,2.2974,217.56,217.52,6.40611248]
[1734390596825,2.2974,217.56,217.51,2.2979]
[1734390596826,2.28,217.61,217.46,2.28]
[1734390597027,2.2976,217.55,217.51,11.97876542]
[1734390598732,6.40611248,217.6,217.53,6.40611248]
[1734390598931,6.40611248,217.6,217.51,5.57265294]
[1734390599131,6.40611248,217.6,217.54,6.40611248]
[1734390600831,2.28,217.6,217.56,6.40611248]
[1734390601331,2.2973,217.57,217.56,6.40611248]
[1734390602736,2.28,217.6,217.56,6.40611248]
[1734390603436,2.2972,217.58,217.56,6.40611248]
[1734390605539,2.2971,217.59,217.56,6.40611248]
[1734390605835,8.68611248,217.63,217.56,6.40611248]
[1734390606037,8.68611248,217.63,217.56,8.70341248]
[1734390607039,2.2971,217.59,217.56,6.40611248]
[1734390608135,2.2972,217.58,217.56,6.40611248]
[1734390609431,6.40611248,217.63,217.53,1.5641]
[1734390609637,2.2974,217.56,217.54,6.40611248]
[1734390611835,2.2973,217.57,217.54,8.70371248]
[1734390612040,6.40611248,217.63,217.56,6.40611248]
[1734390612942,8.68611248,217.64,217.56,6.40611248]
[1734390613341,2.297,217.6,217.57,2.2973]
[1734390613647,2.297,217.6,217.58,6.40611248]
[1734390616350,6.40611248,217.63,217.53,1.5641]
[1734390616651,2.2971,217.59,217.57,6.40611248]
[1734390617448,6.40611248,217.61,217.55,6.40611248]
[1734390619552,2.2974,217.56,217.55,6.40611248]
[1734390619745,2.2974,217.56,217.53,10.26781248]
[1734390621954,2.2974,217.56,217.53,10.26791248]
[1734390622353,2.2976,217.54,217.53,1.5641]
[1734390622554,2.2976,217.54,217.53,6.40611248]
[1734390624759,2.2975,217.55,217.53,6.40611248]
[1734390625360,2.28,217.59,217.53,6.40611248]
[1734390625555,2.28,217.59,217.55,8.70351248]
[1734390625750,4.5918,217.71,217.57,6.40611248]
[1734390625751,2.28,217.63,217.57,6.40611248]
[1734390625957,2.2971,217.59,217.57,6.40611248]
[1734390627453,2.28,217.63,217.57,6.40611248]
[1734390627960,2.28,217.63,217.57,8.70341248]
[1734390628156,2.2969,217.61,217.57,8.70341248]
[1734390628360,2.28,217.65,217.59,6.40611248]
[1734390628567,2.2967,217.63,217.59,8.70311248]
[1734390629056,6.40611248,217.67,217.59,8.70311248]
[1734390629057,8.68611248,217.67,217.59,8.70311248]
[1734390629860,8.68611248,217.67,217.6,2.2969]
[1734390630459,2.28,217.67,217.6,2.2969]
[1734390630659,6.40611248,217.66,217.6,2.2969]
[1734390631462,2.2967,217.63,217.6,2.2969]
[1734390632262,2.2967,217.63,217.59,8.70321248]
[1734390632464,2.2968,217.62,217.59,8.70321248]
[1734390633859,2.2969,217.61,217.59,6.40611248]
[1734390638569,2.2968,217.62,217.59,8.70311248]
[1734390639064,6.40611248,217.66,217.59,6.40611248]
[1734390639262,2.2969,217.61,217.59,6.40611248]
[1734390639772,2.2969,217.61,217.58,2.2972]
[1734390639971,2.2969,217.61,217.59,6.40611248]
[1734390640165,0.0475,217.76,217.59,6.40611248]
[1734390640466,6.40611248,217.69,217.62,6.40611248]
[1734390640868,6.40611248,217.69,217.62,8.70281248]
[1734390641366,2.2964,217.66,217.62,8.70281248]
[1734390641571,6.40611248,217.69,217.62,8.70281248]
[1734390642571,6.40611248,217.67,217.61,2.2968]
[1734390643574,2.2965,217.65,217.61,2.2968]
[1734390643769,6.40611248,217.67,217.61,2.2968]
[1734390644175,2.2965,217.65,217.61,2.2968]
[1734390645772,6.40611248,217.65,217.59,8.70311248]
[1734390646775,2.2967,217.63,217.6,2.2969]
[1734390646975,6.40611248,217.67,217.59,6.40611248]
[1734390647878,2.2965,217.65,217.59,8.70311248]
[1734390648082,6.40611248,217.67,217.59,8.70311248]
[1734390648280,6.40611248,217.65,217.56,2.26]
[1734390648485,6.40611248,217.65,217.58,6.40611248]
[1734390648678,2.2968,217.62,217.58,8.70331248]
[1734390648975,2.2968,217.62,217.58,6.40611248]
[1734390650474,2.2969,217.61,217.56,2.26]
[1734390650679,2.2969,217.61,217.58,6.40611248]
[1734390650875,6.40611248,217.65,217.58,6.40611248]
[1734390651076,2.26,217.66,217.55,6.40611248]
[1734390651077,2.2972,217.58,217.55,6.40611248]
[1734390651884,2.2972,217.58,217.52,3.0182]
[1734390652079,6.40611248,217.61,217.53,6.40611248]
[1734390652278,7.6592,217.72,217.53,6.40611248]
[1734390652279,6.40611248,217.59,217.53,6.40611248]
[1734390653481,2.2974,217.57,217.53,8.70381248]
[1734390656284,2.2974,217.56,217.53,8.70381248]
[1734390657676,2.2973,217.57,217.53,8.70381248]
[1734390658381,8.66611248,217.64,217.55,6.40611248]
[1734390658577,6.40611248,217.66,217.58,6.40611248]
[1734390658780,8.66611248,217.66,217.6,6.40611248]
[1734390658976,6.40611248,217.67,217.6,6.40611248]
[1734390659177,8.66611248,217.67,217.6,6.40611248]
[1734390659382,8.66611248,217.67,217.6,8.70301248]
[1734390659383,2.2966,217.64,217.6,8.70301248]
[1734390659580,2.2966,217.64,217.6,6.40611248]
[1734390659983,2.2967,217.63,217.6,6.40611248]
[1734390660188,8.66611248,217.67,217.6,6.40611248]
[1734390660384,2.26,217.67,217.58,6.40611248]
[1734390660586,2.2967,217.63,217.59,2.297]
[1734390661688,6.40611248,217.63,217.56,6.40611248]
[1734390662186,2.26,217.62,217.56,6.40611248]
[1734390662586,2.2972,217.58,217.56,6.40611248]
[1734390663186,2.2971,217.6,217.56,6.40611248]
[1734390663590,2.26,217.62,217.56,6.40611248]
[1734390663783,2.2971,217.59,217.56,6.40611248]
[1734390665688,2.297,217.6,217.56,8.70341248]
[1734390666190,2.297,217.6,217.56,6.40611248]
[1734390667384,2.297,217.6,217.57,2.2973]
[1734390668386,2.2968,217.62,217.58,8.70321248]
[1734390670288,2.2968,217.62,217.59,2.2971]
[1734390671394,2.24,217.64,217.58,6.40611248]
[1734390671698,2.24,217.64,217.58,8.70321248]
[1734390672098,2.2968,217.62,217.59,2.2971]
[1734390676001,2.2969,217.61,217.57,2.2972]
[1734390676205,2.2969,217.61,217.58,6.40611248]
[1734390676411,6.40611248,217.63,217.57,2.2972]
[1734390676602,6.40611248,217.63,217.56,6.40611248]
[1734390676796,6.40611248,217.61,217.54,6.40611248]
[1734390677198,8.64611248,217.61,217.54,6.40611248]
[1734390677403,2.24,217.61,217.54,6.40611248]
[1734390677605,8.64611248,217.61,217.54,8.70371248]
[1734390678002,2.2975,217.55,217.52,11.85331248]
[1734390678306,6.40611248,217.57,217.52,1.5469]
[1734390678699,2.2978,217.53,217.51,5.57265294]
[1734390679503,2.24,217.56,217.51,5.57265294]
[1734390679504,6.40611248,217.55,217.51,5.57265294]
[1734390679709,6.40611248,217.55,217.5,6.40611248]
[1734390681508,2.2979,217.52,217.5,6.40611248]
[1734390681705,2.2979,217.52,217.5,11.80364899]
[1734390681906,2.2982,217.49,217.45,4.5385]
[1734390682109,6.40611248,217.53,217.46,6.40611248]
[1734390683311,6.40611248,217.51,217.43,1.6157]
[1734390683508,8.64611248,217.51,217.44,6.40611248]
[1734390684011,8.64611248,217.51,217.44,11.82240959]
[1734390684404,2.2985,217.46,217.44,11.82240959]
[1734390684706,2.2985,217.46,217.44,5.41629711]
[1734390684908,8.64611248,217.51,217.44,11.82240959]
[1734390685107,2.2984,217.47,217.44,11.82240959]
[1734390686024,8.64611248,217.51,217.44,11.82240959]
[1734390686216,8.64611248,217.51,217.43,1.6157]
[1734390686507,8.64611248,217.51,217.43,8.02181248]
[1734390687504,2.2986,217.45,217.43,8.02181248]
[1734390687909,8.64611248,217.51,217.43,8.02181248]
[1734390688216,8.64611248,217.51,217.43,10.32061248]
[1734390688913,2.2984,217.47,217.43,10.32061248]
[1734390689108,8.64611248,217.51,217.43,10.32061248]
[1734390689109,2.24,217.51,217.43,8.02181248]
[1734390689412,8.64611248,217.51,217.44,2.2986]
[1734390689614,2.2984,217.47,217.44,2.2986]
[1734390692117,8.64611248,217.51,217.44,2.2986]
[1734390692118,2.2982,217.48,217.44,2.2986]
[1734390692420,2.2982,217.48,217.45,8.70461248]
[1734390692614,2.2982,217.48,217.45,6.40611248]
[1734390693518,2.2983,217.47,217.45,6.40611248]
[1734390693912,8.64611248,217.51,217.43,1.6157]
[1734390694119,2.2986,217.45,217.43,1.6157]
[1734390694819,2.2987,217.44,217.43,1.6157]
[1734390695219,6.40611248,217.47,217.4,2.2991]
[1734390695420,6.40611248,217.47,217.4,8.70521248]
[1734390695621,6.40611248,217.47,217.4,6.40611248]
[1734390695825,6.40611248,217.47,217.41,2.2989]
[1734390695826,2.2987,217.44,217.41,2.2989]
[1734390696018,6.40611248,217.47,217.38,3.0434]
[1734390696219,6.40611248,217.47,217.41,6.40611248]
[1734390697822,2.2985,217.46,217.41,6.40611248]
[1734390698019,6.40611248,217.47,217.41,6.40611248]
[1734390698418,2.24,217.51,217.41,6.40611248]
[1734390698620,6.40611248,217.49,217.42,2.2988]
[1734390699118,2.2985,217.46,217.42,2.2988]
[1734390701022,2.2985,217.46,217.43,2.2988]
[1734390705322,6.40611248,217.47,217.4,53.67309954]
[1734390705727,6.40611248,217.45,217.4,53.67309954]
[1734390706029,2.2989,217.43,217.4,50.5237]
[1734390706223,6.40611248,217.45,217.4,48.2247]
[1734390706421,2.2988,217.43,217.41,2.2989]
[1734390708123,2.2988,217.43,217.4,50.5238]
[1734390708527,2.2,217.46,217.4,48.2247]
[1734390708726,2.2989,217.42,217.4,48.2247]
[1734390710929,8.60611248,217.46,217.4,48.2247]
[1734390712436,4.4985,217.46,217.4,48.2247]
[1734390712733,2.2,217.46,217.4,48.2247]
[1734390713233,2.2986,217.45,217.42,2.2988]
[1734390714032,2.2986,217.45,217.43,2.2987]
[1734390714234,4.4985,217.46,217.43,2.2987]
[1734390714427,2.2,217.46,217.4,48.2247]
[1734390714635,6.40611248,217.47,217.4,48.2247]
[1734390714933,2.2986,217.45,217.42,2.2988]
[1734390716434,3.2686,217.56,217.43,6.40611248]
[1734390716637,6.40611248,217.54,217.47,6.40611248]
[1734390717236,2.2978,217.53,217.49,2.298]
[1734390717633,2.2975,217.55,217.52,2.2978]
[1734390717840,8.60611248,217.56,217.49,6.40611248]
[1734390718135,6.40611248,217.56,217.49,6.40611248]
[1734390718331,8.70351248,217.56,217.52,2.2977]
[1734390718736,8.70351248,217.56,217.48,1.6018]
[1734390718737,6.40611248,217.58,217.55,2.2975]
[1734390719341,49.20827802,217.63,217.53,6.40611248]
[1734390719541,8.70301248,217.61,217.57,2.2972]
[1734390719946,51.40827802,217.63,217.57,2.2972]
[1734390720239,6.40611248,217.61,217.58,2.2971]
[1734390720436,6.40611248,217.61,217.56,1.4948]
[1734390720735,2.2,217.67,217.56,3.6948]
[1734390720940,6.40611248,217.63,217.59,2.2971]
[1734390721337,8.70281248,217.63,217.58,2.2972]
[1734390722034,6.40611248,217.63,217.59,2.2971]
[1734390722239,8.70281248,217.63,217.59,2.2971]
[1734390723344,6.40611248,217.61,217.56,5.2067]
[1734390724442,8.70301248,217.61,217.57,2.2973]
[1734390725232,2.297,217.6,217.56,5.2067]
[1734390725432,2.297,217.6,217.56,1.4948]
[1734390726439,2.297,217.6,217.56,3.7922]
[1734390727039,8.70301248,217.61,217.57,2.2973]
[1734390730842,6.40611248,217.61,217.58,2.2971]
[1734390731038,6.40611248,217.61,217.56,6.93949236]
[1734390731039,8.70281248,217.63,217.56,6.93949236]
[1734390731845,6.40611248,217.66,217.59,6.40611248]
[1734390732244,6.40611248,217.66,217.62,2.2967]
[1734390732439,6.40611248,217.66,217.59,6.40611248]
[1734390733846,6.40611248,217.64,217.61,2.2968]
[1734390734950,8.70271248,217.64,217.6,2.297]
[1734390735148,6.40611248,217.62,217.56,6.93949236]
[1734390735951,6.40611248,217.6,217.56,6.93949236]
[1734390736554,8.70311248,217.6,217.57,2.2973]
[1734390736750,6.40611248,217.62,217.56,6.93949236]
[1734390737046,2.2967,217.63,217.6,2.2969]
[1734390739353,2.2967,217.63,217.59,2.297]
[1734390742154,2.2968,217.62,217.59,2.297]
[1734390742350,6.40611248,217.64,217.58,2.2972]
[1734390743162,2.2967,217.63,217.58,2.2972]
[1734390743358,6.40611248,217.64,217.58,2.2972]
[1734390744260,2.2968,217.62,217.58,2.2972]
[1734390746657,2.2,217.66,217.58,6.40611248]
[1734390746860,8.60611248,217.66,217.58,6.40611248]
[1734390747160,2.2966,217.64,217.6,2.2969]
[1734390747956,2.2967,217.63,217.6,2.2969]
[1734390750862,2.2,217.66,217.6,6.40611248]
[1734390751066,2.2965,217.65,217.6,6.40611248]
[1734390751469,2.2,217.66,217.6,6.40611248]
[1734390752572,2.2966,217.64,217.61,2.2968]
[1734390759071,6.40611248,217.69,217.62,6.40611248]
[1734390759277,8.56611248,217.69,217.62,6.40611248]
[1734390759770,2.2961,217.68,217.62,6.40611248]
[1734390760473,2.2961,217.68,217.63,2.2966]
[1734390760773,2.2961,217.68,217.64,6.40611248]
[1734390760980,2.2961,217.68,217.65,2.2963]
[1734390761878,2.296,217.69,217.66,2.2963]
[1734390762770,2.296,217.69,217.68,48.1626]
[1734390763378,2.2959,217.7,217.68,48.1626]
[1734390763879,49.17755655,217.74,217.68,48.1626]
[1734390764072,57.74366903,217.74,217.68,48.1626]
[1734390764471,2.2958,217.72,217.69,2.296]
[1734390765073,57.74366903,217.74,217.68,48.1626]
[1734390765074,51.33755655,217.74,217.68,54.56871248]
[1734390765383,8.56611248,217.78,217.7,6.40611248]
[1734390766175,8.56611248,217.78,217.73,2.2956]
[1734390766476,6.40611248,217.78,217.72,6.40611248]
[1734390766984,2.2951,217.78,217.74,6.40611248]
[1734390767182,2.16,217.79,217.74,6.40611248]
[1734390767479,6.40611248,217.8,217.74,6.40611248]
[1734390767976,2.295,217.79,217.75,2.2953]
[1734390768482,2.2951,217.78,217.75,2.2953]
[1734390771983,6.40611248,217.8,217.78,45.7049]
[1734390773587,2.295,217.79,217.78,45.7049]
[1734390778790,2.16,217.82,217.81,37.00378752]
[1734390779090,8.56611248,217.82,217.7,2.2959]
[1734390779291,2.2956,217.74,217.7,2.2959]
[1734390781282,2.2956,217.73,217.7,2.2959]
[1734390781487,6.40611248,217.76,217.69,14.29756798]
[1734390782486,2.2957,217.72,217.69,14.29756798]
[1734390782788,2.2957,217.72,217.69,7.8914555]
[1734390782991,2.2957,217.72,217.69,14.29756798]
[1734390785986,5.62035605,217.85,217.71,6.40611248]
[1734390786180,6.40611248,217.79,217.71,6.40611248]
[1734390786381,2.12,217.78,217.71,6.40611248]
[1734390786789,2.2955,217.75,217.71,8.70181248]
[1734390786991,2.2955,217.75,217.71,2.2957]
[1734390787195,2.12,217.78,217.72,6.40611248]
[1734390787491,5.62035605,217.85,217.74,6.40611248]
[1734390787686,6.40611248,217.83,217.76,6.40611248]
[1734390787885,2.2951,217.78,217.76,6.40611248]
[1734390789085,2.2949,217.8,217.76,8.70131248]
[1734390790093,2.295,217.79,217.76,2.2952]
[1734390790394,2.12,217.84,217.74,8.70161248]
[1734390790395,6.40611248,217.81,217.74,8.70161248]
[1734390790585,6.40611248,217.81,217.74,6.40611248]
[1734390790789,2.295,217.79,217.76,2.2953]
[1734390791395,2.295,217.79,217.76,8.70141248]
[1734390792691,6.40611248,217.86,217.78,6.40611248]
[1734390792891,2.12,217.85,217.78,6.40611248]
[1734390793595,2.2946,217.83,217.79,2.2949]
[1734390793794,2.2946,217.83,217.78,6.40611248]
[1734390794393,2.2946,217.83,217.8,2.2948]
[1734390795893,2.2946,217.83,217.79,2.2949]
[1734390796196,2.2947,217.82,217.79,2.2949]
[1734390798901,2.2946,217.83,217.8,8.70101248]
[1734390799397,2.2945,217.84,217.8,6.40611248]
[1734390799600,2.2945,217.84,217.81,2.2947]
[1734390800202,2.2947,217.82,217.8,6.40611248]
[1734390800404,8.52611248,217.86,217.75,2.12]
[1734390800604,8.52611248,217.86,217.79,6.40611248]
[1734390801404,2.2948,217.81,217.79,6.40611248]
[1734390802600,2.2947,217.82,217.79,8.70111248]
[1734390802797,2.12,217.86,217.81,6.40611248]
[1734390803199,2.12,217.88,217.81,6.40611248]
[1734390803404,2.12,217.88,217.81,8.70081248]
[1734390804104,2.2945,217.84,217.81,8.70081248]
[1734390805905,2.2945,217.84,217.82,2.2946]
[1734390806604,8.52611248,217.89,217.82,2.2946]
[1734390806803,2.2944,217.85,217.82,2.2946]
[1734390808807,2.2944,217.85,217.83,6.40611248]
[1734390813909,2.2942,217.87,217.84,2.2944]
[1734390815510,2.2942,217.87,217.85,6.40611248]
[1734390816902,6.40611248,217.93,217.85,6.40611248]
[1734390817108,2.12,217.92,217.87,6.40611248]
[1734390817713,6.40611248,217.93,217.87,6.40611248]
[1734390818117,2.2939,217.9,217.87,8.70021248]
[1734390818910,2.294,217.89,217.85,8.70031248]
[1734390819708,2.294,217.89,217.87,6.40611248]
[1734390823815,6.40611248,217.95,217.87,6.40611248]
[1734390824010,2.12,217.96,217.91,6.40611248]
[1734390824318,49.12665107,217.97,217.91,6.40611248]
[1734390824619,49.12665107,217.97,217.93,6.40611248]
[1734390824620,2.2933,217.95,217.93,6.40611248]
[1734390826415,6.40611248,217.96,217.88,4.414]
[1734390826613,6.40611248,217.96,217.89,6.40611248]
[1734390826823,51.24665107,217.97,217.91,6.40611248]
[1734390827516,2.2935,217.94,217.91,8.69981248]
[1734390832123,51.24665107,217.97,217.91,8.69981248]
[1734390832124,2.2935,217.93,217.91,8.69981248]
[1734390832727,2.2936,217.92,217.88,2.12]
[1734390832928,2.2936,217.92,217.9,6.40611248]
[1734390833131,51.24665107,217.97,217.9,6.40611248]
[1734390833827,2.2933,217.95,217.9,8.69991248]
[1734390834024,51.24665107,217.97,217.9,8.69991248]
[1734390834427,2.2935,217.94,217.9,8.69991248]
[1734390835532,2.2935,217.94,217.92,6.40611248]
[1734390836726,51.24665107,217.97,217.93,2.2934]
[1734390836727,49.12665107,217.97,217.93,2.2934]
[1734390836931,49.12665107,217.97,217.95,6.40611248]
[1734390837127,51.41975107,217.97,217.95,6.40611248]
[1734390837526,8.52611248,218.03,217.95,6.40611248]
[1734390837724,2.2929,217.99,217.97,6.40611248]
[1734390838127,6.8736,218.16,217.97,6.40611248]
[1734390838128,2.12,218.07,217.97,6.40611248]
[1734390838325,4.5831,218.12,218.01,6.40611248]
[1734390838326,2.12,218.09,218.01,6.40611248]
[1734390838633,6.40611248,218.07,218.01,6.40611248]
[1734390838833,6.40611248,218.07,217.99,6.40611248]
[1734390839032,6.40611248,218.05,217.99,6.40611248]
[1734390839335,2.2927,218.01,217.99,6.40611248]
[1734390839530,6.40611248,218.05,217.99,6.40611248]
[1734390840130,2.2927,218.01,217.99,6.40611248]
[1734390840431,6.40611248,218.03,217.97,6.40611248]
[1734390841736,2.2929,217.99,217.97,6.40611248]
[1734390843639,2.293,217.98,217.97,6.40611248]
[1734390845537,8.52611248,218.05,217.97,6.40611248]
[1734390845838,8.52611248,218.05,217.93,1.4801]
[1734390845839,8.52611248,218.05,217.99,6.40611248]
[1734390846330,8.52611248,218.05,217.93,1.4801]
[1734390846531,6.40611248,218.03,217.97,6.40611248]
[1734390846936,2.293,217.98,217.95,2.2932]
[1734390847130,6.40611248,218.03,217.96,6.40611248]
[1734390847335,6.40611248,218.01,217.91,1.5461]